lending/lending_fUSD_20241113
["ID","MTS","AMOUNT","RATE_DAILY","PERIOD"]
[342134925,1731499843641,-500.0,0.00013699,2]
[342134927,1731499843650,-513.10598335,0.00013699,2]
[342134929,1731499843658,-500.0,0.00013699,2]
[342134931,1731499843668,-1250.0,0.000137,2]
[342134932,1731499843677,-961.51616007,0.000137,2]
[342134934,1731499843686,-961.51616007,0.000137,2]
[342134936,1731499843695,-961.51616007,0.000137,2]
[342134938,1731499843704,-961.51616007,0.000137,2]
[342134941,1731499843724,-961.51616007,0.000137,2]
[342134943,1731499843734,-961.51616007,0.000137,2]
[342134945,1731499843744,-961.51616007,0.000137,2]
[342134947,1731499843752,-961.51616007,0.000137,2]
[342134949,1731499843761,-961.51616007,0.000137,2]
[342134951,1731499843770,-961.51616007,0.000137,2]
[342134953,1731499843779,-961.51616007,0.000137,2]
[342134955,1731499843788,-961.51616007,0.000137,2]
[342134956,1731499843797,-961.51616007,0.000137,2]
[342134958,1731499843806,-961.51616007,0.000137,2]
[342134960,1731499843816,-961.51616007,0.000137,2]
[342134962,1731499843825,-961.51616007,0.000137,2]
[342134964,1731499843834,-961.51616007,0.000137,2]
[342134966,1731499843843,-961.51616007,0.000137,2]
[342134968,1731499843852,-961.51616007,0.000137,2]
[342134970,1731499843861,-961.51,0.000137,2]
[342134972,1731499843875,-1442.2742401,0.000137,2]
[342134975,1731499843895,-1442.2742401,0.000137,2]
[342134977,1731499843911,-1442.2742401,0.000137,2]
[342134978,1731499843922,-1442.2742401,0.000137,2]
[342134980,1731499843932,-1442.2742401,0.000137,2]
[342134982,1731499843941,-1442.2742401,0.000137,2]
[342134984,1731499843950,-1442.2742401,0.000137,2]
[342134986,1731499843959,-1442.2742401,0.000137,2]
[342134988,1731499843980,-1442.2742401,0.000137,2]
[342134990,1731499843989,-1442.2742401,0.000137,2]
[342134992,1731499843998,-1442.2742401,0.000137,2]
[342134994,1731499844007,-1442.2742401,0.000137,2]
[342134996,1731499844017,-1442.2742401,0.000137,2]
[342134998,1731499844026,-1442.2742401,0.000137,2]
[342135000,1731499844035,-1442.2742401,0.000137,2]
[342135002,1731499844044,-1442.2742401,0.000137,2]
[342135004,1731499844053,-1442.2742401,0.000137,2]
[342135006,1731499844062,-1442.2742401,0.000137,2]
[342135008,1731499844071,-1442.2742401,0.000137,2]
[342135010,1731499844081,-1442.27,0.000137,2]
[342135012,1731499844090,-2236.7462964,0.000137,2]
[342135014,1731499844099,-2236.7462964,0.000137,2]
[342135016,1731499844109,-2236.7462964,0.000137,2]
[342135018,1731499844119,-2236.7462964,0.000137,2]
[342135020,1731499844128,-2236.7462964,0.000137,2]
[342135022,1731499844137,-2236.7462964,0.000137,2]
[342135024,1731499844146,-2236.7462964,0.000137,2]
[342135026,1731499844155,-2236.7462964,0.000137,2]
[342135028,1731499844165,-2236.7462964,0.000137,2]
[342135030,1731499844174,-2236.7462964,0.000137,2]
[342135032,1731499844183,-2236.7462964,0.000137,2]
[342135034,1731499844192,-2236.7462964,0.000137,2]
[342135036,1731499844201,-2236.7462964,0.000137,2]
[342135038,1731499844210,-2236.7462964,0.000137,2]
[342135040,1731499844226,-2236.7462964,0.000137,2]
[342135042,1731499844236,-2236.7462964,0.000137,2]
[342135044,1731499844246,-2236.7462964,0.000137,2]
[342135046,1731499844257,-2236.7462964,0.000137,2]
[342135048,1731499844267,-2236.7462964,0.000137,2]
[342135050,1731499844277,-2236.74,0.000137,2]
[342135052,1731499844286,-3355.1194446,0.000137,2]
[342135054,1731499844295,-3355.1194446,0.000137,2]
[342135056,1731499844305,-3355.1194446,0.000137,2]
[342135058,1731499844314,-3355.1194446,0.000137,2]
[342135060,1731499844323,-3355.1194446,0.000137,2]
[342135063,1731499844333,-3355.1194446,0.000137,2]
[342135065,1731499844342,-3355.1194446,0.000137,2]
[342135066,1731499844351,-3355.1194446,0.000137,2]
[342135068,1731499844362,-3355.1194446,0.000137,2]
[342135071,1731499844371,-3355.1194446,0.000137,2]
[342135072,1731499844382,-3355.1194446,0.000137,2]
[342135074,1731499844392,-3355.1194446,0.000137,2]
[342135076,1731499844402,-3355.1194446,0.000137,2]
[342135079,1731499844411,-3355.1194446,0.000137,2]
[342135081,1731499844420,-3355.1194446,0.000137,2]
[342135083,1731499844430,-3355.1194446,0.000137,2]
[342135085,1731499844439,-3355.1194446,0.000137,2]
[342135087,1731499844449,-3355.1194446,0.000137,2]
[342135088,1731499844460,-3355.1194446,0.000137,2]
[342135090,1731499844472,-3355.11,0.000137,2]
[342135093,1731499844482,-2900.0,0.000137,5]
[342135095,1731499844491,-153.308,0.0001373,2]
[342135097,1731499844500,-274.14,0.00013735,2]
[342135099,1731499844511,-736.0,0.0001375,2]
[342135101,1731499844520,-563.96,0.00013787,2]
[342135103,1731499844529,-7363.11315162,0.000138,2]
[342135105,1731499844540,-3600.0,0.000138,5]
[342135107,1731499844549,-244.724,0.0001381,2]
[342135109,1731499844558,-5931.0,0.0001381,2]
[342135111,1731499844567,-13637.0,0.0001381,2]
[342135113,1731499844576,-1160.0,0.0001381,2]
[342135115,1731499844586,-245.58326282,0.00013899,2]
[342135116,1731499844595,-182.22701553,0.000139,2]
[342135119,1731499844605,-7608.92510391,0.000139,2]
[342135120,1731499844618,-700.0,0.000139,5]
[342135122,1731499844627,-1866.66493534,0.000139,2]
[342135124,1731499844637,-197.80568353,0.000139,2]
[342135126,1731499844646,-166.84,0.00013912,2]
[342135129,1731499844656,-1000.0,0.00013953,2]
[342135131,1731499844665,-501.25102629,0.00013973,2]
[342135133,1731499844674,-500.0,0.00013973,2]
[342135135,1731499844683,-299.34555381,0.00013973,2]
[342135136,1731499844693,-236.04,0.00013976,2]
[342135138,1731499844703,-366.2502181,0.00013988,2]
[342135141,1731499844714,-366.2502181,0.00013988,2]
[342135142,1731499844723,-276382.725658,0.00013998,2]
[342135288,1731499846171,-641.09848627,0.00013998,2]
[342135290,1731499846182,-1854.10656872,0.00013998,2]
[342135317,1731499846451,-273.118131,0.00013998,2]
[342135380,1731499847150,949.7,0.0002161,120]
[342135560,1731499848916,-311.17,0.00010959,2]
[342135562,1731499848926,-1091.0,0.0001381,2]
[342135564,1731499848935,-5084.80072689,0.00013998,2]
[342135587,1731499849150,-700.4940275,0.00013998,2]
[342135590,1731499849163,-4452.705,0.00013998,2]
[342135599,1731499849258,-180.33471249,0.00013998,2]
[342135601,1731499849269,-87745.18605802,0.00013998,2]
[342135603,1731499849280,-18372.83587999,0.00013998,2]
[342135780,1731499851375,-150.01,0.00012999,2]
[342135782,1731499851388,-2948.22841207,0.00012999,2]
[342135784,1731499851397,-40791.11939934,0.00013998,2]
[342135787,1731499851409,-676.39999,0.00013998,2]
[342135806,1731499851593,-86737.23723052,0.00013998,2]
[342136286,1731499856296,250.0,0.0002161,120]
[342137306,1731499866994,250.0,0.0002161,120]
[342138537,1731499884573,250.0,0.0002161,120]
[342138538,1731499900693,500.0,0.0002161,120]
[342138539,1731499917048,500.0,0.0002161,120]
[342138540,1731499931075,247.79,0.0002161,120]
[342138543,1731499970460,12906.0,0.0002161,120]
[342138549,1731500051102,1000.0,0.0002161,90]
[342138550,1731500104527,162.0,0.00021,30]
[342138551,1731500104761,162.0,0.00021,30]
[342138553,1731500160375,40000.0,0.00021,35]
[342138554,1731500180187,1000.0,0.00021,60]
[342138555,1731500204329,1000.0,0.00021,30]
[342138556,1731500253995,1019.0994019,0.00016,14]
[342138567,1731500705229,163.0,0.00021,30]
[342138569,1731500757380,30148.7805876,6.94e-05,2]
[342138570,1731500835730,-154.75,8.219e-05,2]
[342138571,1731500835752,-3468.39136407,9e-05,2]
[342138572,1731500835782,-414.41,9.275e-05,2]
[342138573,1731500835803,-394.67131037,9.823e-05,2]
[342138574,1731500835825,-414.41,0.00010434,2]
[342138575,1731500835846,-2229.95,0.00010666,2]
[342138576,1731500835867,-414.41,0.00011593,2]
[342138577,1731500836211,-1450.0,0.00012,2]
[342138578,1731500836240,-250.0,0.00012121,2]
[342138579,1731500836264,-250.0,0.00012127,2]
[342138580,1731500836289,-3622.4,0.00012133,2]
[342138581,1731500836313,-150.0,0.00012136,2]
[342138582,1731500836341,-700.0,0.000122,4]
[342138583,1731500836365,-23900.0,0.00012392,2]
[342138584,1731500836389,-1000.0,0.00012398,2]
[342138585,1731500836412,-160.88,0.00012517,2]
[342138586,1731500836435,-2000.0,0.00012632,2]
[342138587,1731500836458,-400.43,0.00012675,2]
[342138588,1731500836482,-4242.15,0.00012675,2]
[342138589,1731500836504,-1852.42,0.00012676,2]
[342138590,1731500836529,-414.41,0.00012753,2]
[342138591,1731500836551,-151.6,0.00012759,2]
[342138592,1731500836572,-150.0,0.00012846,2]
[342138593,1731500836595,-156.02,0.00012847,2]
[342138594,1731500836616,-419.05,0.00012847,2]
[342138595,1731500836638,-1840.45,0.00012847,2]
[342138596,1731500836661,-443.46,0.00012847,2]
[342138597,1731500836683,-1340.11,0.00012847,2]
[342138598,1731500836709,-2032.85,0.00012847,2]
[342138599,1731500836735,-325.7,0.00012847,2]
[342138600,1731500836759,-370.77,0.00012847,2]
[342138601,1731500836782,-13126.74694136,0.00012869,2]
[342138617,1731500929311,2133.64894812,0.000145,120]
[342138625,1731500960150,-1470.0,0.0001,2]
[342138629,1731500977802,529.0,0.00021,30]
[342138633,1731501004504,163.0,0.00021,30]
[342138640,1731501032435,-154.75,8.219e-05,2]
[342138641,1731501032444,-300.0,9.999e-05,2]
[342138642,1731501032454,-150.0,9.999e-05,2]
[342138643,1731501032463,-300.76359318,0.0001,2]
[342138644,1731501032927,-1054.34457799,0.0001,2]
[342138645,1731501032988,-3680.65185265,0.0001,2]
[342138646,1731501033014,-3260.31394988,0.0001,2]
[342138647,1731501033025,-12784.88350821,0.0001,2]
[342138648,1731501033035,-8420.26746673,0.0001,2]
[342138649,1731501033046,-616002.2714912,0.0001,2]
[342138650,1731501033058,-428644.6425,0.0001,2]
[342138651,1731501033069,-5374.65287269,0.0001,2]
[342138652,1731501033139,-701.26254607,0.0001,2]
[342138781,1731501039407,-24285866.0637026,0.0001,2]
[342138784,1731501039417,-37726.35702978,0.0001,2]
[342138786,1731501039426,-261207.75850019,0.0001,2]
[342138788,1731501039436,-5599.99480602,0.0001,2]
[342138790,1731501039445,-593.41705059,0.0001,2]
[342138791,1731501039455,-1288.10668114,0.0001,2]
[342138793,1731501039465,-1288.10668114,0.0001,2]
[342138795,1731501039474,-1288.10668114,0.0001,2]
[342138797,1731501039484,-35938.88966395,0.0001019,2]
[342138799,1731501039493,-3759.15833067,0.00010859,2]
[342138801,1731501039503,-12634.72340345,0.00010859,2]
[342138803,1731501039513,-11510.50057129,0.000109,2]
[342138805,1731501039523,-500.0,0.00010958,2]
[342138807,1731501039532,-500.0,0.00010958,2]
[342138809,1731501039541,-500.0,0.00010958,2]
[342138811,1731501039550,-500.0,0.00010958,2]
[342138813,1731501039559,-239.84194568,0.00010958,2]
[342138815,1731501039568,-500.0,0.00010958,2]
[342138817,1731501039577,-500.0,0.00010958,2]
[342138819,1731501039586,-500.0,0.00010958,2]
[342138821,1731501039595,-500.0,0.00010958,2]
[342138823,1731501039605,-500.0,0.00010958,2]
[342138825,1731501039614,-500.0,0.00010958,2]
[342138827,1731501039623,-500.0,0.00010958,2]
[342138829,1731501039633,-500.0,0.00010958,2]
[342138831,1731501039642,-500.0,0.00010958,2]
[342138833,1731501039651,-500.0,0.00010958,2]
[342138835,1731501039661,-500.0,0.00010958,2]
[342138837,1731501039670,-500.0,0.00010958,2]
[342138839,1731501039679,-500.0,0.00010958,2]
[342138841,1731501039689,-593.38,0.00010959,2]
[342138843,1731501039698,-420.0,0.00010999,2]
[342138845,1731501039708,-255.0,0.00010999,2]
[342138847,1731501039717,-18210.0,0.00011258,2]
[342138849,1731501039726,-1852.42,0.00011583,2]
[342138851,1731501039736,-2855.74,0.00011848,2]
[342138853,1731501039750,-2000.0,0.00011896,2]
[342138855,1731501039759,-2831.67,0.00011929,2]
[342138857,1731501039769,-587.0,0.00012099,2]
[342138859,1731501039778,-433.0,0.00012099,2]
[342138861,1731501039788,-37675.61,0.00012122,2]
[342138863,1731501039797,-1400.0,0.000123,4]
[342138865,1731501039807,-250.0,0.00012316,2]
[342138867,1731501039818,-43553.63,0.00012329,2]
[342138869,1731501039827,-150.0,0.00012362,2]
[342138871,1731501039836,-7293.45302898,0.00012362,2]
[342138873,1731501039846,-2100.0,0.000124,4]
[342138875,1731501039855,-2855.74,0.00012441,2]
[342138876,1731501039864,-2800.0,0.000125,4]
[342138878,1731501039873,-150.0,0.0001251,2]
[342138880,1731501039884,-3500.0,0.000126,4]
[342138882,1731501039893,-4949.76,0.000126,2]
[342138885,1731501039903,-700.0,0.000127,4]
[342138887,1731501039913,-1977.44,0.000127,2]
[342138889,1731501039923,-210.18,0.00012741,2]
[342138891,1731501039932,-11689.0,0.00012741,2]
[342138893,1731501039941,-700.0,0.000128,4]
[342138895,1731501039951,-47784.35583942,0.00012869,2]
[342138897,1731501039960,-250.0,0.00012877,2]
[342138899,1731501039970,-500.0,0.000129,2]
[342138900,1731501039981,-614.12831935,0.000129,2]
[342138902,1731501039991,-700.0,0.000129,4]
[342138904,1731501040000,-5262.91319665,0.000129,2]
[342138907,1731501040010,-7608.92510391,0.000129,2]
[342138908,1731501040019,-5013.75055792,0.000129,2]
[342138910,1731501040029,-156.02,0.00012911,2]
[342138912,1731501040038,-2229.95,0.0001293,2]
[342138914,1731501040047,-501.31951194,0.00012973,2]
[342138916,1731501040056,-500.0,0.00012973,2]
[342138918,1731501040065,-176021.0,0.00012986,2]
[342138920,1731501040075,-795.0,0.00012986,2]
[342138922,1731501040084,-1070118.00857239,0.00013,2]
[342138942,1731501040261,-851.01895814,0.00013,2]
[342138957,1731501040397,-27.89131037,0.00013,2]
[342139165,1731501042490,-705.96763772,0.00013,2]
[342139175,1731501042578,-895.2526147,0.00013,2]
[342139177,1731501042590,-850.30155369,0.00013,2]
[342139481,1731501045437,-494.48,0.00010959,2]
[342139483,1731501045446,-247.17,0.00013,2]
[342139493,1731501045532,-1903.5001,0.00013,2]
[342139495,1731501045543,-5870.93471292,0.00013,2]
[342139516,1731501045732,-424.964,0.00013,2]
[342139518,1731501045746,-1273.2314635,0.00013,2]
[342139538,1731501045927,-2987.23991469,0.00013,2]
[342139540,1731501045940,-3409.7431202,0.00013,2]
[342139546,1731501045988,-954.05334361,0.00013,2]
[342139799,1731501048457,-500.0,0.00010958,2]
[342139801,1731501048467,-500.0,0.00010958,2]
[342139803,1731501048476,-500.0,0.00010958,2]
[342139805,1731501048485,-500.0,0.00010958,2]
[342139807,1731501048495,-500.0,0.00010958,2]
[342139808,1731501048505,-500.0,0.00010958,2]
[342139810,1731501048514,-207.20181553,0.00010958,2]
[342139812,1731501048523,-500.0,0.00010958,2]
[342139814,1731501048532,-500.0,0.00010958,2]
[342139816,1731501048541,-500.0,0.00010958,2]
[342139818,1731501048551,-506.46159752,0.00010958,2]
[342139820,1731501048560,-500.0,0.00010958,2]
[342139822,1731501048570,-500.0,0.00010958,2]
[342139824,1731501048579,-500.0,0.00010958,2]
[342139826,1731501048588,-167.09442616,0.00010958,2]
[342139828,1731501048597,-500.0,0.00010958,2]
[342139830,1731501048607,-500.0,0.00010958,2]
[342139832,1731501048616,-417.24017546,0.00010958,2]
[342139840,1731501048746,-82.75982454,0.00010958,2]
[342139841,1731501048756,-251.86789046,0.00010958,2]
[342139842,1731501048767,-248.13210954,0.00010958,2]
[342139843,1731501048776,-500.0,0.00010958,2]
[342139844,1731501048786,-362.98457264,0.00010958,2]
[342139849,1731501049134,-137.01542736,0.00010958,2]
[342139850,1731501049144,-500.0,0.00010958,2]
[342139851,1731501049153,-500.0,0.00010958,2]
[342139852,1731501049162,-500.0,0.00010958,2]
[342139853,1731501049171,-500.0,0.00010958,2]
[342139854,1731501049180,-450.3106647,0.00010958,2]
[342139855,1731501049190,-432.64941463,0.00010958,2]
[342139856,1731501049199,-500.0,0.00010958,2]
[342139857,1731501049209,-500.0,0.00010958,2]
[342139858,1731501049219,-500.0,0.00010958,2]
[342139859,1731501049228,-351.78372561,0.00010958,2]
[342139860,1731501049237,-500.0,0.00010958,2]
[342139861,1731501049246,-500.0,0.00010958,2]
[342139862,1731501049255,-500.0,0.00010958,2]
[342139863,1731501049265,-500.0,0.00010958,2]
[342139864,1731501049274,-500.0,0.00010958,2]
[342139865,1731501049283,-210.51101574,0.00010958,2]
[342139866,1731501049335,-289.48898426,0.00010958,2]
[342139867,1731501049345,-500.0,0.00010958,2]
[342139868,1731501049356,-500.0,0.00010958,2]
[342139869,1731501049366,-500.0,0.00010958,2]
[342139870,1731501049376,-292.51651954,0.00010958,2]
[342139871,1731501049387,-500.0,0.00010958,2]
[342139872,1731501049397,-500.0,0.00010958,2]
[342139873,1731501049408,-500.0,0.00010958,2]
[342139875,1731501049418,-265.6447962,0.00010958,2]
[342139876,1731501049429,-234.3552038,0.00010958,2]
[342139877,1731501049439,-500.0,0.00010958,2]
[342139878,1731501049449,-500.0,0.00010958,2]
[342139879,1731501049458,-128.9449962,0.00010958,2]
[342139885,1731501066640,154.0,4.823e-05,2]
[342139888,1731501265368,-150.0,9.999e-05,2]
[342139889,1731501265392,-300.0,9.999e-05,2]
[342139890,1731501265416,-300.0,9.999e-05,2]
[342139891,1731501354148,179.99,0.000122,4]
[342139908,1731501403708,-175.0,9.64e-05,2]
[342139911,1731501602823,163.0,0.00021,30]
[342139915,1731502028289,-2232.6,9.64e-05,2]
[342139916,1731502028311,-150.0,9.999e-05,2]
[342139917,1731502028332,-300.0,9.999e-05,2]
[342139918,1731502028354,-300.0,9.999e-05,2]
[342139919,1731502028376,-1719.08283974,0.0001,2]
[342139920,1731502028398,-9145.0818025,0.0001,2]
[342139921,1731502032597,57256.0,0.00021,30]
[342139938,1731502150341,-300.0,9.999e-05,2]
[342139939,1731502150363,-21960.34351465,0.0001,2]
[342139940,1731502150385,-9748.5,0.00010319,2]
[342139941,1731502150408,-5853.79748148,0.00010331,2]
[342139942,1731502162201,-1865.16661293,0.00010331,2]
[342139943,1731502165276,-16181.03590559,0.00010331,2]
[342139944,1731502165296,-159.57,0.00010343,2]
[342139945,1731502165318,-250.0,0.00010343,2]
[342139946,1731502165343,-12967.36,0.00010343,2]
[342139947,1731502165364,-1000.0,0.00010356,2]
[342139948,1731502165384,-2000.0,0.00010492,2]
[342139949,1731502165405,-1698.93,0.00010612,2]
[342139950,1731502165425,-2831.67,0.00010659,2]
[342139951,1731502165446,-155.34,0.00010665,2]
[342139952,1731502165465,-1749.23,0.00010781,2]
[342139953,1731502165486,-6774.58,0.00010781,2]
[342139954,1731502165506,-5265.87425441,0.00010816,2]
[342139956,1731502173117,-18444.52574559,0.00010816,2]
[342139957,1731502173141,-1977.44,0.00010816,2]
[342139958,1731502173162,-150.99,0.00010816,2]
[342139959,1731502173187,-1852.42,0.00010876,2]
[342139960,1731502173210,-236.04,0.00010876,2]
[342139961,1731502173231,-1500.0,0.00010959,2]
[342139962,1731502173252,-250.0,0.00010959,2]
[342139963,1731502173273,-4922.28,0.00010959,2]
[342139964,1731502173294,-3019.45,0.00010959,2]
[342139965,1731502173314,-13908.72,0.00010959,2]
[342139966,1731502173343,-510.97,0.00010959,2]
[342139967,1731502173364,-425.81,0.00010959,2]
[342139968,1731502173384,-354.84,0.00010959,2]
[342139969,1731502173406,-295.7,0.00010959,2]
[342139970,1731502173427,-246.41,0.00010959,2]
[342139971,1731502173449,-420.0,0.00010999,2]
[342139972,1731502173470,-155.34,0.00011017,2]
[342139973,1731502173494,-28771.74729923,0.00011271,2]
[342139974,1731502173515,-5433.59,0.00011317,2]
[342139975,1731502173537,-2729.07,0.00011317,2]
[342139976,1731502173559,-2729.07,0.0001132,2]
[342139977,1731502173585,-2729.07,0.00011323,2]
[342139978,1731502173607,-2729.07,0.00011326,2]
[342139979,1731502173629,-358.37,0.00011326,2]
[342139980,1731502173651,-166.45,0.00011326,2]
[342139981,1731502173675,-785.16483518,0.00011329,2]
[342139983,1731502204247,3122.60861441,0.0002089,30]
[342139984,1731502204297,163.34542385,0.00021,30]
[342139987,1731502232010,-2716.79,0.00010528,2]
[342139988,1731502232019,-811.34,0.00010959,2]
[342139989,1731502232029,-205.35,0.00010959,2]
[342139990,1731502232038,-171.12,0.00010959,2]
[342139992,1731502232047,-855.63,0.00010959,2]
[342139994,1731502232056,-1943.90516482,0.00011329,2]
[342139996,1731502232065,-2729.07,0.00011332,2]
[342139998,1731502232074,-2729.07,0.00011335,2]
[342140000,1731502232083,-2729.07,0.00011338,2]
[342140002,1731502232091,-84.02596429,0.00011341,2]
[342140012,1731502232185,-2645.04403571,0.00011341,2]
[342140014,1731502232195,-2729.07,0.00011344,2]
[342140016,1731502232205,-252.96001406,0.00011347,2]
[342140021,1731502232238,-2476.10998594,0.00011347,2]
[342140023,1731502232247,-2729.07,0.0001135,2]
[342140025,1731502232257,-250.0,0.00011351,2]
[342140027,1731502232266,-2729.07,0.00011353,2]
[342140029,1731502232275,-2729.07,0.00011356,2]
[342140031,1731502232283,-2729.07,0.00011359,2]
[342140033,1731502232292,-2729.07,0.00011362,2]
[342140035,1731502232301,-2729.07,0.00011365,2]
[342140037,1731502232311,-2729.07,0.00011368,2]
[342140039,1731502232320,-155.34,0.0001137,2]
[342140041,1731502232329,-2729.07,0.00011371,2]
[342140043,1731502232338,-2729.07,0.00011374,2]
[342140045,1731502232347,-150.0,0.00011433,2]
[342140047,1731502232356,-28771.74729916,0.00011452,2]
[342140049,1731502232366,-11354.21,0.00011454,2]
[342140051,1731502232375,-3019.45,0.00011507,2]
[342140053,1731502232384,-1438.81257142,0.00011551,2]
[342140055,1731502232393,-28771.74729916,0.00011633,2]
[342140057,1731502232402,-1000.0,0.00011651,2]
[342140059,1731502232411,-150.0,0.00011658,2]
[342140060,1731502232420,-7293.45302898,0.00011658,2]
[342140062,1731502232429,-155.34,0.00011722,2]
[342140065,1731502232439,-1438.81257141,0.00011744,2]
[342140067,1731502232448,-28771.74729916,0.00011814,2]
[342140068,1731502232457,-160.92,0.00011849,2]
[342140071,1731502232466,-73552.0,0.0001187,2]
[342140072,1731502232475,-1438.81257141,0.00011936,2]
[342140073,1731502232484,-28771.74729916,0.00011995,2]
[342140074,1731502232493,-200.0,0.00011999,2]
[342140075,1731502232502,-1450.0,0.00012,2]
[342140076,1731502232511,-274.14,0.00012033,2]
[342140077,1731502232520,-30412.7,0.00012055,2]
[342140078,1731502232529,-3019.45,0.00012055,2]
[342140079,1731502232538,-155.34,0.00012074,2]
[342140080,1731502232547,-1438.81257141,0.00012129,2]
[342140081,1731502232556,-28771.74729916,0.00012176,2]
[342140082,1731502232567,-700.0,0.000122,4]
[342140083,1731502232576,-166.45,0.0001227,2]
[342140084,1731502232585,-1500.0,0.000123,4]
[342140085,1731502232594,-1438.81257141,0.00012322,2]
[342140086,1731502232604,-43553.63,0.00012329,2]
[342140087,1731502232616,-10084.40471663,0.00012357,2]
[342140088,1731502232758,-18687.34258253,0.00012357,2]
[342140089,1731502232768,-2300.0,0.000124,4]
[342140090,1731502232777,-155.34,0.00012426,2]
[342140091,1731502232786,-274.14,0.00012458,2]
[342140092,1731502232795,-669.91,0.00012485,2]
[342140093,1731502232804,-2006.00253791,0.000125,4]
[342140094,1731502232815,-993.99746209,0.000125,4]
[342140095,1731502232824,-1438.81257141,0.00012515,2]
[342140096,1731502232834,-28771.74729916,0.00012538,2]
[342140097,1731502232843,-967.64,0.00012548,2]
[342140098,1731502232852,-967.64,0.00012548,2]
[342140099,1731502232863,-967.64,0.00012548,2]
[342140100,1731502232873,-344.57,0.00012548,2]
[342140101,1731502232882,-967.64,0.00012548,2]
[342140102,1731502232891,-967.64,0.00012548,2]
[342140103,1731502232901,-967.64,0.00012548,2]
[342140104,1731502232910,-967.64,0.00012548,2]
[342140105,1731502232920,-967.64,0.00012548,2]
[342140106,1731502232930,-967.64,0.00012548,2]
[342140107,1731502232940,-967.64,0.00012548,2]
[342140108,1731502232949,-967.64,0.00012548,2]
[342140109,1731502232960,-967.64,0.00012548,2]
[342140110,1731502232969,-967.64,0.00012548,2]
[342140111,1731502232978,-32.5277462,0.00012548,2]
[342140112,1731502233026,-935.1122538,0.00012548,2]
[342140113,1731502233035,-1267.3,0.00012548,2]
[342140114,1731502233045,-967.64,0.00012548,2]
[342140115,1731502233054,-967.64,0.00012548,2]
[342140116,1731502233063,-967.64,0.00012548,2]
[342140117,1731502233073,-1846.93,0.00012548,2]
[342140118,1731502233083,-967.64,0.00012548,2]
[342140119,1731502233092,-967.64,0.00012548,2]
[342140120,1731502233102,-967.64,0.00012548,2]
[342140121,1731502233114,-967.64,0.00012548,2]
[342140122,1731502233123,-967.64,0.00012548,2]
[342140123,1731502233132,-967.64,0.00012556,2]
[342140124,1731502233142,-967.64,0.00012578,2]
[342140125,1731502233153,-3800.0,0.000126,4]
[342140126,1731502233163,-409.03733942,0.00012677,2]
[342140127,1731502233172,-700.0,0.000127,4]
[342140128,1731502233181,-1438.81257141,0.00012707,2]
[342140129,1731502233193,-28771.74729916,0.00012719,2]
[342140130,1731502233203,-700.0,0.000128,4]
[342140131,1731502233213,-3000.0,0.0001287,2]
[342140132,1731502233223,-250.0,0.00012877,2]
[342140133,1731502233232,-274.14,0.00012884,2]
[342140134,1731502233241,-50024.10801372,0.00012899,2]
[342140135,1731502233251,-1543.26357638,0.000129,2]
[342140136,1731502233260,-166.01655638,0.000129,2]
[342140137,1731502233270,-151.90634136,0.000129,2]
[342140138,1731502233281,-777.6361638,0.000129,2]
[342140139,1731502233290,-2835.14744056,0.000129,2]
[342140140,1731502233300,-28771.74729916,0.000129,2]
[342140141,1731502233310,-700.0,0.000129,4]
[342140142,1731502233319,-1438.81257141,0.000129,2]